bitfinex/quotes_SOLUSD_20240612
["timestamp","ask_amount","ask_price","bid_price","bid_amount"]
[1718158117289,0.8279763,147.79,147.69,17.7065]
[1718158117584,2.5039,147.77,147.72,8.7806]
[1718158117777,0.8279763,147.79,147.72,6.276]
[1718158117965,2.5039,147.77,147.72,8.7806]
[1718158118585,3.3315763,147.79,147.74,2.6743]
[1718158118969,3.3315763,147.79,147.75,0.17]
[1718158119172,3.3315763,147.79,147.76,0.17]
[1718158119681,0.8279763,147.79,147.76,0.17]
[1718158119867,0.8279763,147.79,147.76,8.95]
[1718158120190,0.8279763,147.79,147.77,8.5563]
[1718158120887,0.8279763,147.79,147.77,6.0525]
[1718158122164,0.8279763,147.79,147.78,6.7352]
[1718158122499,0.8279763,147.79,147.78,15.93531459]
[1718158122676,0.8279763,147.79,147.78,33.46121459]
[1718158123061,0.8279763,147.79,147.78,22.2674]
[1718158123262,0.8279763,147.79,147.78,14.7563]
[1718158123487,0.8279763,147.79,147.78,9.7489]
[1718158123994,0.8279763,147.79,147.78,7.2452]
[1718158124227,0.8279763,147.79,147.76,2.5039]
[1718158124498,0.8279763,147.79,147.74,10.0172]
[1718158124665,0.8279763,147.79,147.75,6.6378]
[1718158124863,0.8279763,147.79,147.74,10.0172]
[1718158125092,0.8279763,147.79,147.78,2.5037]
[1718158125386,0.8279763,147.79,147.77,2.5038]
[1718158125593,0.8279763,147.79,147.78,0.68]
[1718158126165,0.8279763,147.79,147.73,18.8717]
[1718158126166,2.5038,147.78,147.73,18.8717]
[1718158126366,0.8279763,147.79,147.74,6.4614]
[1718158126676,0.8279763,147.79,147.78,8.9651]
[1718158126996,0.8279763,147.79,147.78,2.5037]
[1718158127297,0.64909872,147.79,147.78,2.5037]
[1718158127469,0.64909872,147.79,147.78,2.8437]
[1718158127670,0.64909872,147.79,147.78,3.1837]
[1718158128188,0.64909872,147.79,147.78,0.68]
[1718158128694,0.64909872,147.79,147.78,3.1837]
[1718158131103,0.64909872,147.79,147.78,9.7854]
[1718158131307,0.64909872,147.79,147.78,14.7928]
[1718158131613,0.64909872,147.79,147.78,3.1837]
[1718158132511,0.64909872,147.79,147.78,0.17]
[1718158132685,0.64909872,147.79,147.78,2.5037]
[1718158134907,0.64909872,147.79,147.78,2.6737]
[1718158135107,0.64909872,147.79,147.78,3.1837]
[1718158136304,0.64909872,147.79,147.78,19.703]
[1718158136486,0.64909872,147.79,147.78,32.2215]
[1718158136997,0.64909872,147.79,147.78,22.2067]
[1718158137795,0.64909872,147.79,147.78,14.6956]
[1718158138013,0.64909872,147.79,147.78,3.1837]
[1718158138189,0.64909872,147.79,147.78,2.5037]
[1718158139239,0.64909872,147.79,147.78,25.037]
[1718158139387,0.64909872,147.79,147.78,25.377]
[1718158139592,0.64909872,147.79,147.78,25.717]
[1718158140309,0.64909872,147.79,147.78,31.9346]
[1718158140494,0.64909872,147.79,147.78,3.1837]
[1718158142222,0.64909872,147.79,147.75,5.0083]
[1718158142395,0.64909872,147.79,147.74,2.5042]
[1718158142396,3.15269872,147.79,147.74,2.5042]
[1718158142798,0.64909872,147.79,147.71,6.2015]
[1718158143003,0.64909872,147.79,147.73,5.0091]
[1718158143207,0.64909872,147.79,147.77,2.5038]
[1718158143831,0.64909872,147.79,147.78,2.5037]
[1718158144131,0.64909872,147.79,147.78,25.717]
[1718158144322,16.3342,147.91,147.79,0.17]
[1718158144533,39.4042,147.91,147.79,0.68]
[1718158144715,39.4042,147.91,147.81,10.0123]
[1718158144929,8.6096,147.9,147.85,2.5024]
[1718158145314,6.1079,147.9,147.87,2.5021]
[1718158145618,2.5015,147.91,147.86,2.5022]
[1718158145833,23.07,147.9,147.78,21.2156]
[1718158146018,2.502,147.88,147.79,5.0071]
[1718158146214,2.5021,147.88,147.82,2.5029]
[1718158146408,2.5021,147.88,147.81,0.17]
[1718158146409,2.5026,147.85,147.81,0.17]
[1718158146622,2.5026,147.85,147.79,2.6734]
[1718158146822,2.5027,147.84,147.79,2.5034]
[1718158147233,2.5025,147.85,147.79,2.5034]
[1718158147424,8.5428,147.85,147.8,2.5032]
[1718158147616,23.07,147.84,147.75,5.0084]
[1718158147917,23.07,147.84,147.78,2.5036]
[1718158147918,31.7083,147.84,147.78,2.5036]
[1718158148217,8.6386,147.83,147.74,21.222]
[1718158148438,8.6386,147.83,147.77,2.5038]
[1718158148816,6.1356,147.83,147.78,2.5036]
[1718158149411,6.1356,147.83,147.77,2.5038]
[1718158149613,15.3158,147.87,147.79,2.5034]
[1718158149815,2.5031,147.82,147.76,2.5039]
[1718158150014,25.5729,147.83,147.74,5.0086]
[1718158150230,29.73,147.83,147.78,2.5036]
[1718158150430,29.73,147.83,147.79,2.5035]
[1718158150626,29.73,147.83,147.78,2.5036]
[1718158152440,29.73,147.83,147.79,2.5035]
[1718158153442,23.07,147.86,147.77,0.68]
[1718158153618,21.8503,147.87,147.82,2.5029]
[1718158153810,21.8503,147.87,147.83,2.5028]
[1718158154526,24.3525,147.87,147.82,2.5029]
[1718158154934,21.8503,147.87,147.83,0.34]
[1718158155138,2.5018,147.89,147.84,2.5026]
[1718158155525,2.5017,147.9,147.85,2.5024]
[1718158155730,15.6461,147.91,147.87,0.17]
[1718158156037,15.6461,147.91,147.86,0.34]
[1718158156340,7.4009763,147.94,147.89,10.0074]
[1718158156636,0.8279763,147.94,147.91,0.17]
[1718158157140,0.8279763,147.94,147.85,0.17]
[1718158157337,0.8279763,147.94,147.82,27.7607]
[1718158157338,3.3290763,147.94,147.88,2.5018]
[1718158157515,3.3290763,147.94,147.89,0.68]
[1718158157516,9.6283763,147.94,147.89,0.68]
[1718158157838,4.6272763,147.94,147.89,3.1818]
[1718158158050,4.6272763,147.94,147.89,0.68]
[1718158158259,15.7669,147.99,147.89,0.68]
[1718158158420,2.5004,147.98,147.93,0.17]
[1718158158621,2.5004,147.98,147.93,0.86999384]
[1718158160537,15.7669,147.99,147.93,0.86999384]
[1718158160739,6.0018,147.97,147.93,0.17]
[1718158160926,8.5024,147.97,147.93,0.17]
[1718158161124,6.0018,147.97,147.93,0.17]
[1718158161326,6.0018,147.97,147.93,0.51]
[1718158161767,8.5023,147.97,147.93,0.51]
[1718158162450,2.5005,147.97,147.93,0.51]
[1718158162755,2.5004,147.98,147.93,0.51]
[1718158163042,2.5004,147.98,147.93,3.0111]
[1718158163438,15.7669,147.99,147.92,0.17]
[1718158163635,2.5008,147.96,147.87,5.0043]
[1718158163842,2.5008,147.96,147.88,0.17]
[1718158164038,2.5008,147.96,147.91,2.5015]
[1718158164624,2.5005,147.97,147.91,2.5015]
[1718158165031,2.5004,147.98,147.93,0.17]
[1718158165226,2.5004,147.98,147.93,2.6711]
[1718158165651,2.5005,147.97,147.92,0.34]
[1718158165831,2.5005,147.97,147.92,0.17]
[1718158166659,2.5006,147.96,147.92,0.17]
[1718158167038,2.5009,147.95,147.89,2.5018]
[1718158167244,2.501,147.94,147.86,5.0047]
[1718158167447,47.25,148.0,147.91,5.0029]
[1718158167448,2.5,148.0,147.91,5.0029]
[1718158167632,2.5002,147.99,147.93,2.501]
[1718158167833,5.0002,148.0,147.92,2.5012]
[1718158168034,2.5004,147.98,147.93,2.5011]
[1718158168367,14.9996,148.01,147.93,2.5011]
[1718158168665,2.5002,147.99,147.94,0.51]
[1718158169344,2.4999,148.01,147.96,2.5006]
[1718158169540,14.9967,148.04,147.99,2.5]
[1718158169541,2.4993,148.04,147.99,2.5]
[1718158169745,15.5104,148.06,147.99,2.5]
[1718158169962,2.4994,148.04,147.99,2.5]
[1718158170465,2.4995,148.03,147.98,0.17]
[1718158171461,2.4995,148.03,147.98,2.6702]
[1718158172175,2.4996,148.02,147.98,0.17]
[1718158172463,2.5,148.0,147.94,2.5008]
[1718158172661,11.0931,148.02,147.92,16.2869]
[1718158172964,11.0931,148.02,147.9,6.1609]
[1718158172965,2.5003,147.98,147.93,2.5011]
[1718158173150,2.5002,147.99,147.91,5.0028]
[1718158173662,6.0937,148.01,147.94,5.002]
[1718158173838,8.5935,148.01,147.96,2.5006]
[1718158175368,2.5,148.0,147.95,2.6707]
[1718158176054,8.5936,148.01,147.96,2.5006]
[1718158176654,2.5,148.0,147.95,2.6707]
[1718158176968,2.5003,147.98,147.93,2.501]
[1718158177353,2.5002,147.99,147.94,2.5009]
[1718158177549,2.4999,148.01,147.96,2.5006]
[1718158177857,11.6271,148.02,147.92,5.0026]
[1718158178064,2.5,148.0,147.95,2.5007]
[1718158178266,2.4999,148.01,147.96,2.5006]
[1718158178449,2.4997,148.02,147.97,2.5004]
[1718158178646,8.5944,148.02,147.97,2.5004]
[1718158179573,14.9956,148.05,147.96,0.68]
[1718158179869,2.4995,148.03,147.98,2.5002]
[1718158180445,15.5104,148.06,147.99,0.34]
[1718158180659,2.4989,148.07,148.02,2.6695]
[1718158180866,26.3466763,148.08,148.03,2.4994]
[1718158181064,23.8479763,148.08,148.02,0.17]
[1718158181255,2.4988,148.07,148.02,2.8395]
[1718158182266,26.3465763,148.08,148.03,2.6694]
[1718158182973,2.4988,148.07,148.03,0.17]
[1718158183354,0.8279763,148.08,148.03,0.68]
[1718158183668,0.8279763,148.08,148.06,2.4989]
[1718158183885,0.8279763,148.08,148.05,2.6691]
[1718158184050,0.8279763,148.08,148.04,2.8392]
[1718158184253,0.8279763,148.08,148.06,0.17]
[1718158184467,0.8279763,148.08,148.06,0.34]
[1718158185249,0.8279763,148.08,148.05,0.34]
[1718158185444,0.8279763,148.08,148.03,2.4994]
[1718158185651,0.8279763,148.08,148.04,0.51]
[1718158185850,0.8279763,148.08,148.04,3.0092]
[1718158186680,0.8279763,148.08,148.05,0.17]
[1718158186860,0.8279763,148.08,148.05,1.51823296]
[1718158188049,0.8279763,148.08,148.05,0.17]
[1718158188249,0.8279763,148.08,148.05,2.6691]
[1718158189646,0.8279763,148.08,148.06,2.4989]
[1718158190154,0.8279763,148.08,148.05,0.17]
[1718158190354,0.8279763,148.08,148.07,2.4988]
[1718158190554,0.8279763,148.08,148.07,3.1788]
[1718158191476,0.8279763,148.08,148.04,2.4992]
[1718158192045,0.8279763,148.08,147.98,21.9787]
[1718158192772,2.4989,148.07,148.01,2.4997]
[1718158192968,2.499,148.06,148.0,2.4999]
[1718158193173,0.8279763,148.08,148.02,2.4995]
[1718158193378,0.8279763,148.08,148.04,2.4991]
[1718158193579,0.8279763,148.08,148.03,2.4994]
[1718158193768,0.8279763,148.08,148.01,4.9996]
[1718158193769,0.8279763,148.08,148.04,2.4993]
[1718158194477,0.8279763,148.08,148.03,5.1689]
[1718158194687,0.8279763,148.08,148.07,2.4988]
[1718158194895,0.8279763,148.08,148.07,2.6688]
[1718158195392,0.8279763,148.08,148.07,3.1788]
[1718158199373,0.8279763,148.08,148.04,2.4992]
[1718158199585,0.8279763,148.08,148.03,4.9989]
[1718158199891,0.8279763,148.08,148.05,2.499]
[1718158200192,0.8279763,148.08,148.06,2.4989]
[1718158200396,0.8279763,148.08,148.07,9.9952]
[1718158200575,0.8279763,148.08,148.07,2.8388]
[1718158200897,0.8279763,148.08,148.07,3.1788]
[1718158201481,0.8279763,148.08,148.07,14.2408]
[1718158201671,0.8279763,148.08,148.07,21.7372]
[1718158201971,0.8279763,148.08,148.07,31.7324]
[1718158203381,6.2915,148.18,148.14,0.17]
[1718158203700,8.7884,148.18,148.14,0.17]
[1718158203905,8.7884,148.18,148.12,2.4978]
[1718158204083,8.574,148.16,148.11,2.4981]
[1718158204409,2.4971,148.18,148.13,2.6678]
[1718158204906,6.0767,148.18,148.13,2.6678]
[1718158205304,6.0767,148.18,148.14,3.84068695]
[1718158205483,6.0767,148.18,148.14,1.34318695]
[1718158206003,8.5736,148.18,148.14,1.34318695]
[1718158206385,22.97,148.2,148.14,1.34318695]
[1718158206609,2.4965,148.21,148.15,0.68]
[1718158206787,8.646,148.2,148.15,3.1773]
[1718158206985,2.4968,148.19,148.14,0.17]
[1718158207189,6.1494,148.2,148.14,0.17]
[1718158207190,2.4969,148.18,148.14,0.68]
[1718158207401,6.1494,148.2,148.1,2.4983]
[1718158207402,6.1494,148.17,148.1,2.4983]
[1718158207593,6.1494,148.17,148.05,15.9686]
[1718158207594,2.4979,148.13,148.05,15.9686]
[1718158207786,2.4977,148.14,148.06,4.9979]
[1718158208099,21.348,148.15,148.09,12.4919]
[1718158208307,21.348,148.15,148.07,12.4934]
[1718158208478,23.8455,148.15,148.09,2.4984]
[1718158208679,2.4977,148.14,148.08,2.4985]
[1718158208904,21.348,148.15,148.08,4.9972]
[1718158209205,21.348,148.15,148.12,2.4979]
[1718158209379,6.3558,148.18,148.09,4.9966]
[1718158209583,6.3558,148.18,148.05,136.3486]
[1718158209788,16.3553,148.19,148.07,120.38]
[1718158209980,16.3553,148.19,148.15,2.4973]
[1718158210693,31.8221,148.22,148.16,2.4972]
[1718158210905,8.8521,148.22,148.16,2.4972]
[1718158211111,6.3558,148.22,148.15,0.17]
[1718158211281,6.3558,148.22,148.21,2.4964]
[1718158211487,6.3558,148.22,148.15,2.6673]
[1718158211810,2.4966,148.2,148.15,0.17]
[1718158212009,6.1305,148.18,148.1,6.2472]
[1718158212187,6.1305,148.18,148.09,4.9968]
[1718158212596,15.5667,148.17,148.04,25.367]
[1718158212897,2.4975,148.15,148.05,4.9982]
[1718158213318,2.4975,148.15,148.09,2.4984]
[1718158213614,15.5667,148.17,148.07,2.4987]
[1718158213799,15.5667,148.17,148.02,14.1493]
[1718158213800,15.5667,148.12,147.99,5.0002]
[1718158213986,4.997,148.09,147.98,6.6506]
[1718158214184,4.9975,148.08,147.96,25.77570815]
[1718158214497,2.499,148.06,148.0,2.4999]
[1718158214799,42.3567,148.12,148.0,7.4997]
[1718158215004,67.7326,148.12,147.98,7.5007]
[1718158215205,4.9967,148.1,147.97,15.0027]
[1718158215379,42.3567,148.12,147.98,10.001]
[1718158215581,2.4986,148.08,148.02,2.4996]
[1718158215798,2.4988,148.07,148.01,2.4997]
[1718158215984,2.4988,148.07,147.98,10.001]
[1718158216190,2.4988,148.07,148.01,2.4998]
[1718158216406,2.4986,148.09,148.02,2.4995]
[1718158216578,2.4987,148.08,148.02,2.4995]
[1718158216979,44.8547,148.12,148.06,2.4988]
[1718158217186,15.5667,148.12,148.05,4.9981]
[1718158217409,21.6722,148.12,148.08,2.4985]
[1718158217785,21.6722,148.12,148.07,2.6687]
[1718158218203,22.1202,148.17,148.09,2.4983]
[1718158218403,22.1202,148.17,148.08,0.17]
[1718158218619,2.4974,148.15,148.09,2.6684]
[1718158219026,15.6941,148.17,148.12,2.4979]
[1718158219329,22.1202,148.17,148.09,0.17]
[1718158219630,2.4973,148.16,148.1,2.4981]
[1718158220132,2.4975,148.15,148.09,3.0084]
[1718158220426,22.1202,148.17,148.09,0.17]
[1718158220427,6.2596,148.14,148.09,0.17]
[1718158220634,6.2596,148.14,148.1,2.4982]
[1718158220803,8.7572,148.14,148.08,0.17]
[1718158221008,15.6941,148.17,148.06,4.9977]
[1718158221009,8.7811,148.11,148.06,2.4989]
[1718158221207,2.4979,148.12,148.05,0.34]
[1718158221431,2.4976,148.14,148.08,2.4986]
[1718158221811,2.4978,148.13,148.07,2.4987]
[1718158222306,8.7176,148.13,148.08,2.4986]
[1718158222506,6.2198,148.14,148.06,0.17]
[1718158222727,6.1589,148.13,148.05,2.499]
[1718158222925,2.4983,148.1,148.05,2.499]
[1718158223105,6.1589,148.13,148.05,2.499]
[1718158223302,36.5303,148.13,147.99,6.4856]
[1718158223566,36.5303,148.13,147.97,15.1224]
[1718158223567,2.4996,148.03,147.97,15.1224]
[1718158223839,6.1589,148.13,147.99,2.5]
[1718158223840,4.9974,148.08,147.99,2.5]
[1718158224016,11.0753,148.05,147.96,7.73640815]
[1718158224207,2.4996,148.02,147.97,2.5004]
[1718158224411,2.4993,148.04,147.98,2.5002]
[1718158224613,8.5759,148.05,147.99,2.5]
[1718158224813,2.4993,148.04,147.98,2.5002]
[1718158225231,2.4993,148.04,147.93,15.0071]
[1718158225232,2.4996,148.02,147.96,2.5005]
[1718158225406,36.4537,148.05,147.91,16.3705]
[1718158225603,2.5001,148.0,147.94,2.5008]
[1718158225837,2.5001,148.0,147.91,16.3705]
[1718158225838,4.9987,148.04,147.91,29.9516]
[1718158226050,2.4997,148.02,147.96,2.5006]
[1718158226205,2.5004,147.98,147.92,2.5013]
[1718158226406,2.5001,147.99,147.93,2.5011]
[1718158226610,2.4993,148.04,147.98,2.5002]
[1718158226912,2.4995,148.03,147.97,2.5004]
[1718158227434,8.5759,148.05,147.96,5.0012]
[1718158227635,26.4568,148.05,147.92,10.0051]
[1718158227943,2.4997,148.02,147.93,0.34]
[1718158228138,2.4993,148.04,147.98,2.5002]
[1718158228437,6.0768,148.05,148.01,2.4997]
[1718158228614,6.0768,148.05,148.0,2.4999]
[1718158229369,6.0768,148.05,147.94,5.0019]
[1718158229370,2.4996,148.02,147.94,5.0019]
[1718158229633,4.9986,148.04,147.95,0.34]
[1718158229841,2.5001,148.0,147.95,0.34]
[1718158230137,6.6017,148.0,147.91,12.5072]
[1718158230344,6.6017,148.0,147.9,10.0063]
[1718158230345,2.4995,148.03,147.97,2.5004]
[1718158230921,2.4999,148.01,147.95,2.5007]
[1718158231241,2.4999,148.01,147.96,2.5006]
[1718158231624,2.4999,148.01,147.95,2.5007]
[1718158231828,8.5181,148.0,147.95,2.5007]
[1718158232144,6.0181,148.0,147.95,2.5007]
[1718158232353,6.0181,148.0,147.96,2.5006]
[1718158232659,6.0181,148.0,147.89,7.5054]
[1718158232824,2.501,147.94,147.88,6.0768]
[1718158233029,17.5052,147.96,147.88,6.0768]
[1718158233239,2.5009,147.95,147.89,2.5017]
[1718158233837,2.5009,147.95,147.86,11.5029]
[1718158233838,5.0011,147.97,147.86,6.4984]
[1718158234166,26.138,147.99,147.86,7.507]
[1718158234167,2.5008,147.95,147.86,7.507]
[1718158234371,2.5008,147.95,147.89,2.5017]
[1718158234871,2.5011,147.94,147.88,2.5019]
[1718158235163,2.5012,147.93,147.85,5.0049]
[1718158235335,2.5008,147.95,147.89,2.5017]
[1718158235537,2.5011,147.94,147.86,5.0046]
[1718158235738,2.5011,147.93,147.84,35.5574]
[1718158236050,2.501,147.94,147.85,5.005]
[1718158236256,2.501,147.94,147.88,2.5019]
[1718158236837,2.501,147.94,147.89,2.5018]
[1718158237734,6.4225,147.97,147.9,0.17]
[1718158238057,6.4225,147.97,147.93,2.5011]
[1718158238266,6.4225,147.97,147.9,5.6831]
[1718158238470,6.4225,147.97,147.92,2.5012]
[1718158238669,8.923,147.97,147.91,2.5014]
[1718158238849,6.4225,147.97,147.85,15.0145]
[1718158239042,6.4225,147.97,147.9,2.5016]
[1718158239043,2.5009,147.95,147.9,2.5016]
[1718158239356,8.923,147.97,147.91,2.6714]
[1718158239561,6.5514,147.96,147.91,0.17]
[1718158239761,6.5514,147.96,147.89,0.51]
[1718158239961,6.5514,147.96,147.92,2.5013]
[1718158240569,2.5009,147.95,147.9,2.6716]
[1718158240764,2.5009,147.95,147.9,0.17]
[1718158240964,15.0072,147.93,147.84,29.4204]
[1718158241272,2.5018,147.89,147.84,2.5026]
[1718158241454,12.5061,147.93,147.84,2.5026]
[1718158241455,2.5017,147.9,147.84,2.5026]
[1718158241659,5.0027,147.92,147.82,5.0058]
[1718158241869,15.0958,147.93,147.83,5.0056]
[1718158242055,2.5016,147.9,147.85,2.5024]
[1718158242453,8.5961,147.9,147.85,2.5024]
[1718158242751,2.5018,147.89,147.84,2.5026]
[1718158242955,9.121,147.89,147.84,2.5026]
[1718158243392,6.6192,147.89,147.86,2.5023]
[1718158243683,8.8115,147.91,147.86,2.5023]
[1718158243853,8.8115,147.91,147.85,2.5024]
[1718158244053,11.2239,147.92,147.83,2.5027]
[1718158244391,6.2211,147.89,147.83,2.5027]
[1718158244572,8.723,147.89,147.83,2.5027]
[1718158244884,6.2211,147.89,147.8,7.5104]
[1718158245094,6.2211,147.89,147.85,2.5025]
[1718158245688,6.4017,147.88,147.85,2.5025]
[1718158245903,6.4017,147.89,147.73,100.0]
[1718158246060,2.5022,147.87,147.81,2.503]
[1718158246395,6.4017,147.89,147.77,100.0]
[1718158246686,6.4017,147.89,147.83,2.5027]
[1718158246687,8.9035,147.89,147.83,2.5027]
[1718158247060,8.9035,147.89,147.84,0.17]
[1718158247677,2.502,147.88,147.82,3.0129]
[1718158247881,8.8202,147.88,147.83,0.34]
[1718158248691,8.8202,147.88,147.83,2.8428]
[1718158248892,2.5026,147.85,147.76,12.5199]
[1718158249195,2.5027,147.84,147.78,2.5036]
[1718158249411,2.5022,147.87,147.81,2.503]
[1718158249600,5.0037,147.89,147.81,2.5031]
[1718158249916,2.5021,147.88,147.82,2.5029]
[1718158250120,8.5792,147.89,147.83,0.17]
[1718158250298,6.0774,147.87,147.83,2.5028]
[1718158250493,6.0774,147.87,147.82,0.34]
[1718158250803,6.0774,147.87,147.82,2.8429]
[1718158251000,45.4811,147.93,147.75,133.0221]
[1718158251001,6.4814,147.9,147.75,133.0221]
[1718158251198,2.5023,147.87,147.82,0.17]
[1718158251519,8.9837,147.87,147.82,0.68]
[1718158251925,6.4814,147.87,147.79,5.0069]
[1718158252128,6.4814,147.87,147.82,2.5029]
[1718158252830,6.4814,147.87,147.83,2.5028]
[1718158253912,6.4814,147.87,147.82,2.5029]
[1718158254108,8.9836,147.87,147.82,2.5029]
[1718158254308,8.9836,147.87,147.82,0.17]
[1718158254732,8.9836,147.87,147.82,2.5029]
[1718158255231,2.5025,147.86,147.8,3.1832]
[1718158255405,2.5025,147.86,147.78,7.511]
[1718158255406,22.1824,147.85,147.79,2.5034]
[1718158255610,6.5817,147.84,147.8,2.5033]
[1718158255915,15.6007,147.85,147.82,2.503]
[1718158256932,8.7916,147.87,147.82,2.503]
[1718158257530,6.5523,147.85,147.81,2.5031]
[1718158257735,6.5523,147.79,147.75,11.0816]
[1718158257907,6.5523,147.79,147.75,13.5858]
[1718158258224,2.5033,147.81,147.76,2.504]
[1718158258617,2.5034,147.8,147.72,0.8279763]
[1718158258818,2.5034,147.8,147.75,2.5042]
[1718158259135,9.0557,147.8,147.75,2.5042]
[1718158259435,9.0557,147.8,147.76,2.504]
[1718158259436,6.5523,147.8,147.76,2.504]
[1718158259641,6.5523,147.8,147.74,5.0087]
[1718158259812,6.5523,147.8,147.76,2.5039]
[1718158260009,15.2882,147.83,147.78,2.5037]
[1718158260234,6.5523,147.82,147.78,0.17]
[1718158260402,15.2882,147.83,147.75,0.17]
[1718158260617,2.5034,147.8,147.75,0.34]
[1718158260908,15.2882,147.83,147.75,0.34]
[1718158260909,21.8102,147.83,147.77,0.17]
[1718158261124,6.522,147.82,147.77,2.6738]
[1718158261324,9.025,147.82,147.77,2.5038]
[1718158261533,9.025,147.82,147.77,2.5037]
[1718158261735,6.522,147.82,147.79,0.17]
[1718158262006,15.0131,147.87,147.75,17.8693]
[1718158262007,6.522,147.86,147.78,0.17]
[1718158262237,16.4982,147.9,147.84,2.5025]
[1718158262448,6.5383,147.89,147.85,2.5024]
[1718158262645,2.5022,147.87,147.81,2.8431]
[1718158262811,23.0365,147.9,147.83,0.17]
[1718158263004,23.0365,147.9,147.83,0.34]
[1718158263205,25.5383,147.9,147.84,2.5025]
[1718158263412,23.0365,147.9,147.82,0.34]
[1718158263734,9.0407,147.86,147.82,0.34]
[1718158263937,9.0407,147.86,147.81,2.8431]
[1718158264141,2.5025,147.85,147.81,0.34]
[1718158264436,9.0407,147.86,147.81,0.17]
[1718158264607,6.5383,147.86,147.76,18.8144]
[1718158264807,6.5383,147.86,147.76,16.3105]
[1718158265144,6.5383,147.88,147.84,2.5026]
[1718158265310,9.0403,147.88,147.83,2.5028]
[1718158265726,6.5383,147.88,147.83,2.5028]
[1718158266136,6.5383,147.88,147.82,0.17]
[1718158266137,6.5383,147.88,147.84,2.6726]
[1718158266440,18.9999,147.9,147.84,2.6726]
[1718158266627,18.9999,147.9,147.82,0.51]
[1718158266628,16.4982,147.9,147.82,0.68]
[1718158266945,2.5022,147.87,147.83,0.17]
[1718158267317,2.5022,147.87,147.82,2.6729]
[1718158267516,2.5022,147.87,147.76,16.3105]
[1718158267517,2.5028,147.84,147.76,16.3105]
[1718158267745,6.1444,147.87,147.78,7.5111]
[1718158267922,6.1444,147.87,147.79,7.5105]
[1718158268235,6.1444,147.87,147.83,2.5028]
[1718158269036,2.5021,147.88,147.82,2.5029]
[1718158269336,16.4982,147.9,147.86,2.5022]
[1718158269337,6.5096,147.89,147.86,2.5022]
[1718158269549,5.0022,147.94,147.89,2.5017]
[1718158269550,6.5096,147.93,147.89,2.5017]
[1718158269719,6.5096,147.93,147.88,2.5019]
[1718158270058,9.0108,147.93,147.88,2.502]
[1718158270609,15.6992,147.94,147.85,0.17]
[1718158270610,6.5096,147.92,147.85,0.17]
[1718158270842,8.9806,147.88,147.84,0.34]
[1718158271143,6.4785,147.88,147.79,5.0069]
[1718158271349,8.9809,147.86,147.81,2.5031]
[1718158271526,2.503,147.83,147.78,2.5037]
[1718158271717,11.4834,147.86,147.74,120.03747534]
[1718158271718,28.0692,147.86,147.75,5.0083]
[1718158271920,25.5667,147.86,147.78,5.0074]
[1718158272244,2.5027,147.84,147.79,2.5035]
[1718158272539,2.502,147.88,147.83,2.5027]
[1718158272742,22.9157,147.9,147.87,2.5021]
[1718158273045,8.7504,147.92,147.85,2.5024]
[1718158273237,6.249,147.89,147.8,16.2033]
[1718158273448,6.249,147.89,147.85,0.17]
[1718158273638,8.7509,147.89,147.85,0.17]
[1718158273942,8.7509,147.89,147.84,2.1726]
[1718158274153,8.7509,147.89,147.81,12.6859]
[1718158274154,6.249,147.89,147.85,2.5025]
[1718158274335,6.249,147.89,147.86,2.5023]